fUST/lending_fUST_20250317
["ID","MTS","AMOUNT","RATE_DAILY","PERIOD"]
[356291147,1742195447748,-638.68,8.493e-05,2]
[356291148,1742195447759,-578.44,8.493e-05,2]
[356291149,1742195447768,-865.1,8.493e-05,2]
[356291150,1742195447778,-2817.17,8.493e-05,2]
[356291151,1742195447788,-900.1,8.493e-05,2]
[356291152,1742195447799,-3822.59,8.493e-05,2]
[356291153,1742195447808,-1905.56,8.493e-05,2]
[356291154,1742195447818,-500.0,8.493e-05,2]
[356291155,1742195447828,-500.0,8.493e-05,2]
[356291156,1742195447838,-205.1108665,8.633e-05,2]
[356291157,1742195447847,-500.0,8.645e-05,2]
[356291158,1742195447857,-500.0,8.645e-05,2]
[356291159,1742195447867,-377.57380063,8.668e-05,2]
[356291160,1742195447876,-1680.16,8.7e-05,2]
[356291161,1742195447886,-500.74922923,8.702e-05,2]
[356291162,1742195447895,-500.0,8.702e-05,2]
[356291163,1742195447905,-500.0,8.767e-05,2]
[356291164,1742195447914,-500.0,8.767e-05,2]
[356291165,1742195447924,-521.11489971,8.767e-05,2]
[356291166,1742195447934,-582.60594034,8.767e-05,2]
[356291167,1742195447944,-500.0,8.767e-05,2]
[356291168,1742195447954,-595.01,8.767e-05,2]
[356291169,1742195447964,-500.0,8.767e-05,2]
[356291170,1742195447974,-281.98221598,8.767e-05,2]
[356291171,1742195447983,-500.0,8.767e-05,2]
[356291172,1742195447993,-500.0,8.767e-05,2]
[356291173,1742195448003,-500.0,8.767e-05,2]
[356291174,1742195448012,-330.28264396,8.767e-05,2]
[356291175,1742195448176,-169.71735604,8.767e-05,2]
[356291176,1742195448187,-568.66626905,8.767e-05,2]
[356291177,1742195448237,-392.76373095,8.767e-05,2]
[356291178,1742195448247,-567.22101275,8.767e-05,2]
[356291179,1742195448408,-2645.49898725,8.767e-05,2]
[356291180,1742195448417,-500.0,8.767e-05,2]
[356291181,1742195448427,-500.0,8.767e-05,2]
[356291182,1742195448437,-1455.40274706,8.767e-05,2]
[356291183,1742195448450,-753.5,8.767e-05,2]
[356291184,1742195448462,-895.78708559,8.767e-05,2]
[356291185,1742195491881,222000.0,7.918e-05,2]
[356291191,1742195679632,2000.0,0.00015068,120]
[356291192,1742195799374,2000.0,0.00014,30]
[356291193,1742195799877,2000.0,0.00014,30]
[356291194,1742195800222,2000.0,0.00014,30]
[356291195,1742195800531,2000.0,0.00014,30]
[356291196,1742195800848,2000.0,0.00014,30]
[356291197,1742195801167,2000.0,0.00014,30]
[356291198,1742195801490,2000.0,0.00014,30]
[356291199,1742195801828,2000.0,0.00014,30]
[356291200,1742195802141,2000.0,0.00014,30]
[356291201,1742195802462,2000.0,0.00014,30]
[356291202,1742195815229,2000.0,0.00014,30]
[356291203,1742195815596,2000.0,0.00014,30]
[356291204,1742195815932,2000.0,0.00014,30]
[356291205,1742195816256,2000.0,0.00014,30]
[356291206,1742195816572,2000.0,0.00014,30]
[356291207,1742195817473,2000.0,0.00014,30]
[356291208,1742195817732,2000.0,0.00014,30]
[356291209,1742195818059,2000.0,0.00014,30]
[356291210,1742195818375,2000.0,0.00014,30]
[356291211,1742195906323,-238.34024581,8.218e-05,2]
[356291212,1742195906346,-300.0,8.218e-05,2]
[356291213,1742195906368,-500.0,8.219e-05,2]
[356291214,1742195906389,-466.61,8.219e-05,2]
[356291215,1742195906411,-500.0,8.219e-05,2]
[356291216,1742195906433,-520.64,8.219e-05,2]
[356291217,1742195906455,-500.0,8.219e-05,2]
[356291218,1742195906476,-500.0,8.219e-05,2]
[356291219,1742195906498,-3504.04,8.219e-05,2]
[356291220,1742195906520,-526.70019507,8.219e-05,2]
[356291221,1742195906542,-1746.76,8.219e-05,2]
[356291222,1742195906564,-500.0,8.219e-05,2]
[356291223,1742195906586,-500.0,8.219e-05,2]
[356291224,1742195906607,-841.25,8.219e-05,2]
[356291225,1742195906628,-500.0,8.219e-05,2]
[356291226,1742195906649,-2811.13,8.219e-05,2]
[356291227,1742195906671,-2075.9,8.219e-05,2]
[356291228,1742195906693,-2814.56,8.219e-05,2]
[356291229,1742195906715,-609.92402092,8.219e-05,2]
[356291230,1742195906736,-1187.73,8.219e-05,2]
[356291231,1742195906759,-1547.38,8.219e-05,2]
[356291232,1742195906783,-500.0,8.219e-05,2]
[356291233,1742195906805,-4915.67,8.219e-05,2]
[356291234,1742195906829,-500.0,8.219e-05,2]
[356291235,1742195906851,-65799.59,8.219e-05,2]
[356291236,1742195906874,-1217.94,8.219e-05,2]
[356291237,1742195906897,-647.03,8.219e-05,2]
[356291238,1742195906920,-7169.86,8.219e-05,2]
[356291239,1742195906943,-2366.25,8.219e-05,2]
[356291240,1742195906965,-1485.12,8.219e-05,2]
[356291241,1742195906988,-1116.04,8.219e-05,2]
[356291242,1742195907010,-500.0,8.219e-05,2]
[356291243,1742195907033,-794.49,8.219e-05,2]
[356291244,1742195907054,-3811.98,8.219e-05,2]
[356291245,1742195907075,-500.0,8.219e-05,2]
[356291246,1742195907096,-5271.36,8.219e-05,2]
[356291247,1742195907117,-500.0,8.219e-05,2]
[356291248,1742195907138,-240.4,8.219e-05,2]
[356291249,1742195907159,-500.0,8.219e-05,2]
[356291250,1742195907180,-500.0,8.219e-05,2]
[356291251,1742195907202,-585.45,8.219e-05,2]
[356291252,1742195907222,-500.0,8.219e-05,2]
[356291253,1742195907244,-5324.9,8.219e-05,2]
[356291254,1742195907266,-500.0,8.219e-05,2]
[356291255,1742195907288,-530.24,8.219e-05,2]
[356291256,1742195907309,-825.09,8.219e-05,2]
[356291257,1742195907330,-500.0,8.219e-05,2]
[356291258,1742195907352,-2582.41,8.219e-05,2]
[356291259,1742195907372,-793.01,8.219e-05,2]
[356291326,1742196632123,-166.83817206,8.218e-05,2]
[356291327,1742196632136,-158.04588521,8.218e-05,2]
[356291328,1742196632148,-304.18970185,8.218e-05,2]
[356291329,1742196632160,-300.0,8.218e-05,2]
[356291330,1742196632173,-500.0,8.219e-05,2]
[356291331,1742196632186,-500.0,8.219e-05,2]
[356291332,1742196632197,-500.0,8.219e-05,2]
[356291333,1742196632208,-500.0,8.219e-05,2]
[356291334,1742196632219,-500.0,8.219e-05,2]
[356291335,1742196632231,-507.79965025,8.219e-05,2]
[356291336,1742196632244,-512.39686874,8.219e-05,2]
[356291337,1742196632255,-507.19748279,8.219e-05,2]
[356291338,1742196632269,-500.0,8.219e-05,2]
[356291339,1742196632280,-500.0,8.219e-05,2]
[356291340,1742196632292,-507.77996569,8.219e-05,2]
[356291341,1742196632304,-500.0,8.219e-05,2]
[356291342,1742196632315,-500.0,8.219e-05,2]
[356291343,1742196632326,-537.84,8.219e-05,2]
[356291344,1742196632337,-500.0,8.219e-05,2]
[356291345,1742196632348,-500.0,8.219e-05,2]
[356291346,1742196632358,-500.0,8.219e-05,2]
[356291348,1742196632368,-500.0,8.219e-05,2]
[356291349,1742196632379,-500.0,8.219e-05,2]
[356291351,1742196632390,-500.0,8.219e-05,2]
[356291353,1742196632401,-500.0,8.219e-05,2]
[356291356,1742196632412,-500.0,8.219e-05,2]
[356291358,1742196632423,-500.0,8.219e-05,2]
[356291360,1742196632436,-500.0,8.219e-05,2]
[356291363,1742196632448,-500.0,8.219e-05,2]
[356291365,1742196632459,-500.0,8.219e-05,2]
[356291367,1742196632470,-376.11935921,8.219e-05,2]
[356291533,1742196637732,-131.16794624,8.219e-05,2]
[356291534,1742196637743,-500.0,8.219e-05,2]
[356291535,1742196637754,-373.42430382,8.219e-05,2]
[356291638,1742196643119,-126.57569618,8.219e-05,2]
[356291639,1742196643129,-500.0,8.219e-05,2]
[356291640,1742196643138,-271.1336344,8.219e-05,2]
[356291641,1742196643148,-500.0,8.219e-05,2]
[356291642,1742196643159,-500.0,8.219e-05,2]
[356291643,1742196643168,-500.0,8.219e-05,2]
[356291644,1742196643178,-563.38602048,8.219e-05,2]
[356291645,1742196643187,-500.0,8.219e-05,2]
[356291646,1742196643198,-500.0,8.219e-05,2]
[356291647,1742196643207,-500.0,8.219e-05,2]
[356291648,1742196643217,-500.0,8.219e-05,2]
[356291649,1742196643226,-500.0,8.219e-05,2]
[356291650,1742196643235,-500.0,8.219e-05,2]
[356291651,1742196643245,-500.0,8.219e-05,2]
[356291652,1742196643254,-500.0,8.219e-05,2]
[356291653,1742196643266,-608.76604475,8.219e-05,2]
[356291654,1742196643275,-500.0,8.219e-05,2]
[356291655,1742196643285,-505.3623663,8.219e-05,2]
[356291656,1742196643294,-500.0,8.219e-05,2]
[356291657,1742196643304,-500.00022747,8.219e-05,2]
[356291658,1742196643313,-500.0,8.219e-05,2]
[356291660,1742196643323,-500.0,8.219e-05,2]
[356291661,1742196643334,-500.0,8.219e-05,2]
[356291662,1742196643344,-500.0,8.219e-05,2]
[356291663,1742196643354,-500.0,8.219e-05,2]
[356291664,1742196643364,-299.29965092,8.219e-05,2]
[356291665,1742196643374,-101.08024044,8.219e-05,2]
[356291696,1742196809539,24470.4866032,7.403e-05,2]
[356291707,1742197079499,19400.6698045,7.389e-05,2]
[356291708,1742197170747,3431.6673622,7.331e-05,2]
[356291710,1742197537836,10058.0,0.00015,120]
[356291711,1742197555096,10000.0,0.00015,120]
[356291712,1742197593464,10000.0,0.00015,120]
[356291713,1742197624506,10000.0,0.00015,120]
[356291714,1742197652574,10000.0,0.00015,120]
[356291715,1742197660249,10000.0,0.00015,120]
[356291716,1742197707071,150.0,1.5e-06,7]
[356291844,1742197840362,-329.71951174,8.118e-05,2]
[356291845,1742197840372,-300.0,8.118e-05,2]
[356291846,1742197840382,-3569.69352055,8.119e-05,2]
[356291859,1742197843285,-5011.4827879,8.119e-05,2]
[356291877,1742197846200,-588.00235,8.119e-05,2]
[356291880,1742197890773,1590.59740406,8.001e-05,2]
[356291884,1742198343824,-184.46753705,8.018e-05,2]
[356291889,1742198490883,200.0,0.00013503,120]
[356291890,1742198610848,200.0,0.00014394,120]
[356291892,1742198910773,200.0,0.00014158,120]
[356291894,1742199032301,-151.0,8.014e-05,2]
[356291895,1742199032311,-286.37249575,8.017e-05,2]
[356291896,1742199032320,-300.0,8.017e-05,2]
[356291897,1742199032330,-61984.73328767,8.018e-05,2]
[356291928,1742199038167,-4816.17765286,8.018e-05,2]
[356291930,1742199038180,-45594.93354514,8.018e-05,2]
[356291949,1742199041628,-0.01137242,8.018e-05,2]
[356291954,1742199400621,189.0,8e-05,2]
[356291955,1742199570827,200.0,0.00013994,120]
[356291956,1742199686592,92557.57882604,7.919e-05,2]
[356291957,1742199686621,129442.42117396,7.919e-05,2]
[356291966,1742200172929,18579.9434249,7.397e-05,2]
[356292011,1742200238290,-300.0,8.017e-05,2]
[356292012,1742200238301,-613.60997402,8.018e-05,2]
[356292013,1742200238311,-14584.26414191,8.018e-05,2]
[356292014,1742200238320,-515.16151956,8.118e-05,2]
[356292015,1742200238330,-222000.0,8.119e-05,2]
[356292016,1742200238340,-12699.48795239,8.193e-05,2]
[356292017,1742200238349,-502.34721961,8.193e-05,2]
[356292018,1742200238359,-500.0,8.193e-05,2]
[356292019,1742200238369,-500.0,8.193e-05,2]
[356292020,1742200238378,-330.69157533,8.193e-05,2]
[356292021,1742200238387,-500.0,8.193e-05,2]
[356292022,1742200238397,-555.51168725,8.193e-05,2]
[356292023,1742200238406,-338.62636598,8.193e-05,2]
[356292024,1742200238415,-500.0,8.193e-05,2]
[356292026,1742200238425,-500.0,8.193e-05,2]
[356292027,1742200238434,-644.37123205,8.193e-05,2]
[356292030,1742200238446,-500.0,8.193e-05,2]
[356292032,1742200238455,-500.0,8.193e-05,2]
[356292034,1742200238464,-253.58952472,8.193e-05,2]
[356292035,1742200238473,-500.0,8.193e-05,2]
[356292036,1742200238483,-372.37452238,8.193e-05,2]
[356292037,1742200238493,-500.0,8.193e-05,2]
[356292038,1742200238502,-184.59523525,8.193e-05,2]
[356292039,1742200238511,-500.0,8.193e-05,2]
[356292040,1742200238520,-160.98527762,8.193e-05,2]
[356292041,1742200238529,-500.36572264,8.193e-05,2]
[356292042,1742200238539,-500.0,8.193e-05,2]
[356292043,1742200238548,-500.0,8.193e-05,2]
[356292044,1742200238557,-500.0,8.193e-05,2]
[356292045,1742200238567,-631.08230919,8.214e-05,2]
[356292046,1742200238577,-514.80162001,8.219e-05,2]
[356292047,1742200238586,-500.0,8.219e-05,2]
[356292048,1742200238595,-500.0,8.219e-05,2]
[356292049,1742200238605,-500.0,8.219e-05,2]
[356292050,1742200238616,-500.0,8.219e-05,2]
[356292051,1742200238626,-501.44166137,8.219e-05,2]
[356292052,1742200238636,-500.0,8.219e-05,2]
[356292053,1742200238645,-500.0,8.219e-05,2]
[356292054,1742200238655,-500.0,8.219e-05,2]
[356292055,1742200238664,-500.0,8.219e-05,2]
[356292056,1742200238674,-500.0,8.219e-05,2]
[356292057,1742200238684,-607.19987057,8.219e-05,2]
[356292058,1742200238694,-500.0,8.219e-05,2]
[356292059,1742200238704,-500.0,8.219e-05,2]
[356292060,1742200238714,-500.0,8.219e-05,2]
[356292061,1742200238724,-500.0,8.219e-05,2]
[356292062,1742200238735,-500.0,8.219e-05,2]
[356292063,1742200238744,-500.0,8.219e-05,2]
[356292064,1742200238754,-500.0,8.219e-05,2]
[356292065,1742200238763,-525.60647736,8.219e-05,2]
[356292066,1742200238773,-533.75063591,8.219e-05,2]
[356292067,1742200238783,-307.79393807,8.219e-05,2]
[356292068,1742200238793,-500.0,8.219e-05,2]
[356292069,1742200238803,-500.39715694,8.219e-05,2]
[356292070,1742200238812,-500.0,8.219e-05,2]
[356292071,1742200238823,-500.0,8.219e-05,2]
[356292072,1742200238834,-500.0,8.219e-05,2]
[356292073,1742200238844,-500.0,8.219e-05,2]
[356292074,1742200238855,-205.08929982,8.219e-05,2]
[356292075,1742200238865,-500.0,8.219e-05,2]
[356292076,1742200238875,-500.0,8.219e-05,2]
[356292077,1742200238885,-500.0,8.219e-05,2]
[356292078,1742200238895,-514.85277248,8.219e-05,2]
[356292079,1742200238905,-500.0,8.219e-05,2]
[356292080,1742200238914,-500.0,8.219e-05,2]
[356292081,1742200238924,-500.0,8.219e-05,2]
[356292082,1742200238934,-557.41303201,8.219e-05,2]
[356292083,1742200238943,-500.0,8.219e-05,2]
[356292084,1742200238953,-514.79349974,8.219e-05,2]
[356292085,1742200238964,-500.0,8.219e-05,2]
[356292086,1742200238974,-508.41723452,8.219e-05,2]
[356292087,1742200238984,-500.0,8.219e-05,2]
[356292088,1742200238994,-500.0,8.219e-05,2]
[356292089,1742200239003,-500.0,8.219e-05,2]
[356292090,1742200239012,-235.31,8.219e-05,2]
[356292091,1742200239022,-500.0,8.219e-05,2]
[356292092,1742200239031,-513.28199457,8.219e-05,2]
[356292093,1742200239042,-500.0,8.219e-05,2]
[356292094,1742200239052,-500.0,8.219e-05,2]
[356292095,1742200239061,-514.73188177,8.219e-05,2]
[356292096,1742200239070,-500.0,8.219e-05,2]
[356292097,1742200239080,-500.0,8.219e-05,2]
[356292098,1742200239090,-545.15,8.219e-05,2]
[356292099,1742200239103,-500.0,8.219e-05,2]
[356292100,1742200239113,-500.0,8.219e-05,2]
[356292101,1742200239122,-500.0,8.219e-05,2]
[356292102,1742200239131,-500.0,8.219e-05,2]
[356292103,1742200239142,-517.79966918,8.219e-05,2]
[356292104,1742200239152,-500.0,8.219e-05,2]
[356292105,1742200239162,-500.0,8.219e-05,2]
[356292106,1742200239172,-509.34504912,8.219e-05,2]
[356292107,1742200239183,-500.0,8.219e-05,2]
[356292108,1742200239193,-500.0,8.219e-05,2]
[356292109,1742200239202,-515.03101645,8.219e-05,2]
[356292110,1742200239211,-500.0,8.219e-05,2]
[356292111,1742200239221,-514.7029446,8.219e-05,2]
[356292112,1742200239230,-500.0,8.219e-05,2]
[356292113,1742200239239,-526.20134423,8.219e-05,2]
[356292114,1742200239249,-500.0,8.219e-05,2]
[356292115,1742200239258,-500.0,8.219e-05,2]
[356292116,1742200239268,-500.0,8.219e-05,2]
[356292117,1742200239277,-500.0,8.219e-05,2]
[356292118,1742200239287,-189.50764207,8.219e-05,2]
[356292119,1742200239296,-500.0,8.219e-05,2]
[356292120,1742200239305,-500.0,8.219e-05,2]
[356292121,1742200239315,-500.0,8.219e-05,2]
[356292122,1742200239324,-500.0,8.219e-05,2]
[356292123,1742200239333,-505.3623663,8.219e-05,2]
[356292124,1742200239343,-500.0,8.219e-05,2]
[356292125,1742200239352,-500.0,8.219e-05,2]
[356292126,1742200239361,-608.76604475,8.219e-05,2]
[356292127,1742200239371,-500.0,8.219e-05,2]
[356292128,1742200239381,-500.0,8.219e-05,2]
[356292129,1742200239390,-500.00022747,8.219e-05,2]
[356292130,1742200239400,-500.0,8.219e-05,2]
[356292131,1742200239410,-500.0,8.219e-05,2]
[356292132,1742200239419,-500.0,8.219e-05,2]
[356292133,1742200239429,-500.0,8.219e-05,2]
[356292134,1742200239438,-299.78023532,8.219e-05,2]
[356292135,1742200239448,-299.29965092,8.219e-05,2]
[356292136,1742200239457,-500.0,8.219e-05,2]
[356292137,1742200239467,-500.0,8.219e-05,2]
[356292138,1742200239477,-500.0,8.219e-05,2]
[356292139,1742200239486,-500.0,8.219e-05,2]
[356292140,1742200239495,-505.89075834,8.219e-05,2]
[356292141,1742200239505,-500.0,8.219e-05,2]
[356292142,1742200239515,-500.0,8.219e-05,2]
[356292143,1742200239526,-334.62454957,8.219e-05,2]
[356292144,1742200239535,-500.0,8.219e-05,2]
[356292145,1742200239545,-500.0,8.219e-05,2]
[356292146,1742200239554,-500.0,8.219e-05,2]
[356292147,1742200239565,-500.0,8.219e-05,2]
[356292148,1742200239574,-500.0,8.219e-05,2]
[356292149,1742200239583,-519.08756854,8.219e-05,2]
[356292150,1742200239593,-500.0,8.219e-05,2]
[356292151,1742200239603,-395.2145784,8.219e-05,2]
[356292152,1742200239613,-295.922167,8.219e-05,2]
[356292153,1742200239623,-500.0,8.219e-05,2]
[356292154,1742200239633,-500.0,8.219e-05,2]
[356292155,1742200239642,-500.0,8.219e-05,2]
[356292156,1742200239652,-500.0,8.219e-05,2]
[356292157,1742200239661,-521.1090554,8.219e-05,2]
[356292158,1742200239671,-531.76898904,8.219e-05,2]
[356292159,1742200239681,-535.11384951,8.219e-05,2]
[356292160,1742200239691,-500.0,8.219e-05,2]
[356292161,1742200239702,-500.0,8.219e-05,2]
[356292162,1742200239714,-500.0,8.219e-05,2]
[356292163,1742200239724,-508.40005126,8.219e-05,2]
[356292164,1742200239734,-500.0,8.219e-05,2]
[356292165,1742200239745,-501.97420084,8.219e-05,2]
[356292166,1742200239755,-520.1950498,8.219e-05,2]
[356292167,1742200239765,-500.0,8.219e-05,2]
[356292168,1742200239775,-500.44998571,8.219e-05,2]
[356292169,1742200239785,-524.05734502,8.219e-05,2]
[356292170,1742200239795,-500.0,8.219e-05,2]
[356292171,1742200239805,-500.0,8.219e-05,2]
[356292172,1742200239814,-463.35597882,8.219e-05,2]
[356292173,1742200239824,-500.0,8.219e-05,2]
[356292174,1742200239833,-500.0,8.219e-05,2]
[356292175,1742200239843,-521.50615262,8.219e-05,2]
[356292176,1742200239853,-500.0,8.219e-05,2]
[356292177,1742200239863,-520.44472109,8.219e-05,2]
[356292178,1742200239873,-500.0,8.219e-05,2]
[356292179,1742200239883,-526.15065754,8.219e-05,2]
[356292180,1742200239892,-500.0,8.219e-05,2]
[356292181,1742200239903,-500.0,8.219e-05,2]
[356292182,1742200239912,-815.93,8.219e-05,2]
[356292183,1742200239922,-500.0,8.219e-05,2]
[356292184,1742200239932,-525.69451896,8.219e-05,2]
[356292185,1742200239942,-500.0,8.219e-05,2]
[356292186,1742200239952,-500.0,8.219e-05,2]
[356292187,1742200239962,-500.0,8.219e-05,2]
[356292188,1742200239972,-501.36842461,8.219e-05,2]
[356292189,1742200239983,-530.21112599,8.219e-05,2]
[356292190,1742200239993,-500.0,8.219e-05,2]
[356292191,1742200240003,-500.0,8.219e-05,2]
[356292192,1742200240012,-530.29584389,8.219e-05,2]
[356292193,1742200240023,-500.0,8.219e-05,2]
[356292194,1742200240032,-500.0,8.219e-05,2]
[356292195,1742200240043,-500.0,8.219e-05,2]
[356292196,1742200240052,-500.0,8.219e-05,2]
[356292197,1742200240062,-500.0,8.219e-05,2]
[356292198,1742200240072,-500.0,8.219e-05,2]
[356292199,1742200240082,-500.0,8.219e-05,2]
[356292200,1742200240093,-500.0,8.219e-05,2]
[356292201,1742200240103,-500.0,8.219e-05,2]
[356292202,1742200240114,-500.0,8.219e-05,2]
[356292203,1742200240125,-533.364412,8.219e-05,2]
[356292204,1742200240135,-500.0,8.219e-05,2]
[356292205,1742200240144,-500.0,8.219e-05,2]
[356292206,1742200240154,-500.0,8.219e-05,2]
[356292207,1742200240163,-500.0,8.219e-05,2]
[356292209,1742200240175,-500.0,8.219e-05,2]
[356292210,1742200240185,-500.0,8.219e-05,2]
[356292211,1742200240194,-3809.03,8.219e-05,2]
[356292212,1742200240203,-2039.59,8.219e-05,2]
[356292213,1742200240213,-501.26998671,8.219e-05,2]
[356292214,1742200240223,-500.0,8.219e-05,2]
[356292215,1742200240232,-500.0,8.219e-05,2]
[356292216,1742200240241,-500.0,8.219e-05,2]
[356292217,1742200240251,-500.0,8.219e-05,2]
[356292218,1742200240261,-500.0,8.219e-05,2]
[356292219,1742200240271,-505.42604892,8.219e-05,2]
[356292220,1742200240281,-641.71,8.219e-05,2]
[356292221,1742200240290,-509.3683909,8.219e-05,2]
[356292222,1742200240299,-949.25,8.219e-05,2]
[356292223,1742200240309,-500.0,8.219e-05,2]
[356292224,1742200240318,-500.0,8.219e-05,2]
[356292225,1742200240328,-500.0,8.219e-05,2]
[356292226,1742200240337,-500.0,8.219e-05,2]
[356292227,1742200240347,-609.57345088,8.219e-05,2]
[356292228,1742200240357,-500.0,8.219e-05,2]
[356292229,1742200240367,-3152.42,8.219e-05,2]
[356292230,1742200240377,-507.79536326,8.219e-05,2]
[356292231,1742200240387,-512.32554956,8.219e-05,2]
[356292233,1742200240397,-500.0,8.219e-05,2]
[356292235,1742200240406,-505.4470258,8.219e-05,2]
[356292236,1742200240416,-500.0,8.219e-05,2]
[356292237,1742200240425,-500.0,8.219e-05,2]
[356292238,1742200240435,-500.0,8.219e-05,2]
[356292239,1742200240445,-3196.58,8.219e-05,2]
[356292240,1742200240454,-2387.34,8.219e-05,2]
[356292241,1742200240464,-500.0,8.219e-05,2]
[356292242,1742200240474,-516.01880535,8.219e-05,2]
[356292243,1742200240483,-500.0,8.219e-05,2]
[356292244,1742200240493,-500.0,8.219e-05,2]
[356292245,1742200240502,-503.59478268,8.219e-05,2]
[356292246,1742200240512,-500.0,8.219e-05,2]
[356292247,1742200240522,-1792.41,8.219e-05,2]
[356292248,1742200240532,-517.72542629,8.219e-05,2]
[356292249,1742200240541,-1292.56,8.219e-05,2]
[356292250,1742200240551,-608.17869404,8.219e-05,2]
[356292251,1742200240560,-508.77454095,8.219e-05,2]
[356292252,1742200240570,-500.0,8.219e-05,2]
[356292253,1742200240580,-500.0,8.219e-05,2]
[356292254,1742200240590,-500.0,8.219e-05,2]
[356292255,1742200240599,-356.27944059,8.219e-05,2]
[356292256,1742200240609,-500.0,8.219e-05,2]
[356292257,1742200240619,-512.60951125,8.219e-05,2]
[356292258,1742200240629,-501.45308195,8.219e-05,2]
[356292259,1742200240639,-509.36971663,8.219e-05,2]
[356292260,1742200240649,-545.78656493,8.219e-05,2]
[356292261,1742200240659,-500.0,8.219e-05,2]
[356292262,1742200240669,-1497.17,8.219e-05,2]
[356292263,1742200240679,-509.95884464,8.219e-05,2]
[356292264,1742200240688,-500.0,8.219e-05,2]
[356292265,1742200240699,-73986.95,8.219e-05,2]
[356292266,1742200240708,-501.62789493,8.219e-05,2]
[356292267,1742200240718,-162.65679526,8.219e-05,2]
[356292268,1742200240728,-500.0,8.219e-05,2]
[356292269,1742200240739,-510.31286762,8.219e-05,2]
[356292270,1742200240748,-510.59537973,8.219e-05,2]
[356292271,1742200240759,-500.0,8.219e-05,2]
[356292272,1742200240769,-500.0,8.219e-05,2]
[356292273,1742200240779,-7344.11,8.219e-05,2]
[356292274,1742200240789,-942.36,8.219e-05,2]
[356292275,1742200240799,-518.78214184,8.219e-05,2]
[356292276,1742200240808,-2452.35,8.219e-05,2]
[356292277,1742200240818,-500.0,8.219e-05,2]
[356292278,1742200240827,-500.0,8.219e-05,2]
[356292279,1742200240837,-500.0,8.219e-05,2]
[356292280,1742200240847,-500.0,8.219e-05,2]
[356292281,1742200240857,-626.74,8.219e-05,2]
[356292282,1742200240868,-5267.33,8.219e-05,2]
[356292283,1742200240877,-511.82431569,8.219e-05,2]
[356292284,1742200240887,-806.03,8.219e-05,2]
[356292285,1742200240896,-500.0,8.219e-05,2]
[356292286,1742200240906,-510.22454146,8.219e-05,2]
[356292287,1742200240916,-3998.83,8.219e-05,2]
[356292288,1742200240925,-500.0,8.219e-05,2]
[356292289,1742200240935,-501.40199066,8.219e-05,2]
[356292290,1742200240944,-500.0,8.219e-05,2]
[356292291,1742200240954,-5479.22,8.219e-05,2]
[356292292,1742200240963,-503.61596035,8.219e-05,2]
[356292293,1742200240973,-500.0,8.219e-05,2]
[356292294,1742200240983,-500.0,8.219e-05,2]
[356292295,1742200240992,-500.0,8.219e-05,2]
[356292296,1742200241002,-502.66040315,8.219e-05,2]
[356292297,1742200241011,-500.0,8.219e-05,2]
[356292298,1742200241021,-513.03246372,8.219e-05,2]
[356292299,1742200241030,-1323.98,8.219e-05,2]
[356292300,1742200241040,-621.36,8.219e-05,2]
[356292301,1742200241049,-500.0,8.219e-05,2]
[356292302,1742200241059,-513.07134436,8.219e-05,2]
[356292303,1742200241068,-503.35544045,8.219e-05,2]
[356292304,1742200241077,-500.0,8.219e-05,2]
[356292305,1742200241087,-528.02724724,8.219e-05,2]
[356292306,1742200241097,-503.33488426,8.219e-05,2]
[356292307,1742200241111,-500.0,8.219e-05,2]
[356292308,1742200241122,-500.0,8.219e-05,2]
[356292309,1742200241131,-521.31053891,8.219e-05,2]
[356292310,1742200241141,-500.0,8.219e-05,2]
[356292311,1742200241151,-526.95098882,8.219e-05,2]
[356292312,1742200241161,-500.0,8.219e-05,2]
[356292313,1742200241171,-500.0,8.219e-05,2]
[356292314,1742200241181,-510.35875276,8.219e-05,2]
[356292315,1742200241191,-500.0,8.219e-05,2]
[356292316,1742200241200,-579.78,8.219e-05,2]
[356292317,1742200241209,-614.2,8.219e-05,2]